{"text_format":"3","workbook":"xlsx","n_sheets":1,"sheets":["Sheet1"],"not_rendered":{"defined_names":1},"read":"whole","date_system":"1900"}

{"sheet":"Sheet1","index":0,"n_rows":27,"n_cols":10,"rows_kept":27,"merged":[[0,0,0,9],[1,0,3,0],[1,1,3,1],[1,2,3,2],[1,3,3,3],[1,4,3,4],[1,5,1,6],[1,7,1,8],[1,9,3,9],[2,5,3,5],[2,6,3,6],[2,7,3,7],[2,8,3,8],[4,1,4,2],[6,1,6,2],[12,1,12,2],[20,1,20,2],[26,0,26,9]]}
["2025年“F”项目桩基工程专业施工清单与报价表"]
["序号","项目名称","项目特征描述","单位","工程量","采购最高限价（含税）",null,"投标报价",null,"备注"]
[{"$nulls":5},"全费用综合单价（元）","合价（元）","含税全费用单价（元）","含税合价（元）"]
[]
["一","土石方工程"]
[1,"桩间土石方开挖","1.承包工作范围：完成本项目桥梁、栈道桩基桩间土开挖，就近堆放，开挖土石类别综合地勘资料考虑，所有工序相关费用均包含在综合单价中。\n2.填方来源约定：本工程填方土源为项目红线内原有土石方，场内运距综合考虑（共5座桥和1座栈道，详细位置见图纸），相关费用已计入综合单价，发包人不另行计量支付。\n3.开挖与回填技术要求：挖填标高均需满足设计要求，误差控制在设计标高 ±5cm 内；开挖及场内运输方式由承包人自行确定；开挖方案、边坡施工防护、周边管线 / 构筑物 / 建筑物保护措施须经业主审批，施工须满足安全文明施工相关规范及规定，相关费用已包含在投标报价中。\n4.其他费用与责任约定：孔洞防护、进出车辆冲洗、场内外路面保洁、临时用水用电（含水电费用）全部相关费用，均由承包人承担并计入投标报价；因现场超挖、欠挖造成的全部损失，由承包人全额承担。\n5.履约与调价约定：施工全过程须满足城管、环保相关规范要求；为保障施工工期、满足环保要求产生的夜间施工措施费、赶工费全部费用，均已包含在综合单价中。\n6.工程量计量规则：按测绘开挖工程量结合现场收方数据（桩间挖土方工程量不扣除桩所占体积），以立方米（m³）为单位计算，工程量不得大于施工方案工程量。","m3",{"v":1000,"d":"1000.00"},{"v":18,"d":"18.00"},{"$f":"F6*E6","v":{"v":18000,"d":"18000.00"}}]
["二","旋挖机成孔桩基工程"]
[2,"钻孔灌注桩土石方  桩径综合","1.地层情况：土石综合考虑，嵌岩深度满足设计要求，地层情况承包人应根据图纸和地勘报告综合考虑；\n2.工程量计算方式：以现场实际钻孔深度乘以设计桩径截面积以立方计算（除超钻部分），超钻部分由承包人综合考虑在投标报价内，不再计算方量；\n3.弃土外运权责：发包人不指定弃土场，由承包人自行踏勘现场、选定合规弃土场、确定运输路线与运距；弃土外运涉及的运输、装卸、弃土场租赁 / 征用、合规手续办理、环保水保、防护等全部费用，均包含在综合单价内，发包人不另行支付。承包人承担弃土全流程合规责任，因违规产生的行政处罚、第三方索赔及全部风险损失，均由承包人全额承担，合同价款不作调整。\n4.设计桩径：综合考虑；\n5.成孔方式：结合地质勘察成果及承包人施工经验综合考虑确定；孔口护筒按2.5m长考虑，已包含在报价内，不再单独计算。\n6.成孔包含旋挖机械钻孔、提钻、出渣、渣土清理堆放、清孔、废土转运至项目经理部场内指定位置；\n7.综合单价含完成该工作所需的人工、材料（含辅材、周转材料）、机械费、措施费（安全文明施工费、季节性施工、临时设施、夜间施工、二次搬运等）、规费、税金、洞口防护措施费等所有相关费用；承包人需配合发包人完成桩基检测（钻芯取样、小应变桩顶打磨、超声波检测、静载等），并完善相关资料。检测费用由发包人承担。\n8.含工完料清、防暑降温等全部内容，并包含因工期计划必须要的窝工、赶工费用。因检测不合格造成的二次返工的所有费用由承包单位自行承担。\n9.做法：满足设计及相关施工规范要求。","m3",{"$f":"1374.6+300","v":{"v":1674.6,"d":"1674.60"}},{"v":265,"d":"265.00"},{"$f":"F8*E8","v":{"v":443769,"d":"443769.00"}}]
[3,"桩基础 混凝土浇筑 C30（水下混凝土）","1.部位：桩基础\n2.混凝土种类及强度等级：C30 水下商品混凝土\n3.砼运输方式及运距：承包人自行综合考虑\n4.混凝土计算规则：按设计桩顶标高与桩底标高的差值长度乘以设计桩径截面面积按体积计算。承包人应合理控制浇筑高度，超灌应满足设计及规范要求；施工过程中塌孔、缩径、超钻及因地质、工艺等原因产生的混凝土超量、充盈系数增大等风险均由承包人自行承担，超灌、超钻及超出设计充盈部分混凝土费用含在综合单价内。\n5.综合单价包含内容：水下混凝土灌注施工工艺、导管、防离析措施及超灌部分混凝土费用由承包人考虑在投标报价中；完成该工作所需的人工、材料（含辅材、主材、周转材料）、机械费（含辅助机械的进出场费）、措施费（安全文明施工费、季节性施工、临时设施、夜间施工、二次搬运）、规费、税金所有上述费用；承包人需配合发包人完成桩基检测（钻芯取样、小应变、超声波、静载），并完善相关资料。检测费用由发包人承担。\n6.做法：满足设计及现行施工技术、质量验收规范要求。","m3",{"v":1374.6,"d":"1374.60"},{"v":540,"d":"540.00"},{"$f":"F9*E9","v":{"v":742284,"d":"742284.00"}},null,null,"混凝土实际总用量超过图算量20%，则超过20%的部分商品砼的材料费按实结算（材料单价为甲方核定单价）"]
[4,"钢筋制作、运输、安装","1.钢筋种类、规格：综合\n2.钢筋连接方式：各种连接方式承包人综合考虑在报价中\n3.包含完成该工作所需的人工费、材料费（含辅材）、机械费、机械进出场费、材料场内外运输、二次或多次转运费均已包含在单价内；钢筋的复检、送检所需的检测费由承包人自行考虑在投标报价中不再另行计取\n4.发包人不提供钢筋加工场，由承包人自行考虑或采取外加工方式，加工区平整、硬化、围挡、加工棚及机具设备均由承包人负责；钢筋场外加工：桩基钢筋埋设、吊装、运输、场内外转运、拼接固定及弧形构件钢筋制作安装增加费用均含在综合单价内，不另行计取\n5.品牌不低于：达钢、威钢、四川德胜、冶控、重庆永航\n6.发包人不提供水电接入口，需承包人自备发电机进行加工及施工，该费用由承包人综合考虑在投标报价中\n7.其余做法：满足设计及现行施工技术、质量验收规范要求","t",{"v":120.886,"d":"120.89"},{"v":5200,"d":"5200.00"},{"$f":"F10*E10","v":{"v":628607.2,"d":"628607.20"}}]
[5,"声波检测钢管","1.材质、规格型号：镀锌钢管SCG 57×1.5mm\n2.包含声测管安装及检测后灌浆，压浆做法满足设计及相关规范要求\n3.做法：满足设计及现行施工技术、质量验收规范要求\n4.计算规则：按现场实际收方计算","m",857.15,{"v":20,"d":"20.00"},{"$f":"F11*E11","v":{"v":17143,"d":"17143.00"}},null,null,"声测管、砂浆均由承包人购买"]
[6,"桩径＞φ1000mm截（凿）桩头\n（不含桩间土开挖）","1.截（凿）桩头截面、高度、强度等级：破桩头高度不小于50cm，未尽事宜满足规范，承包人综合考虑 \n2.桩头有无钢筋：有\n3.凿除方式：承包人综合考虑，需采用环切法\n4.包含截桩头，桩头钢筋梳理调直以及建渣外弃，发包人不指定弃土场，由承包人自行踏勘现场、选定合规弃土场、确定运输路线与运距；弃土外运涉及的运输、装卸、弃土场租赁 / 征用、合规手续办理、环保水保、防护等全部费用，均包含在综合单价内，发包人不另行支付。承包人承担弃土全流程合规责任，因违规产生的行政处罚、第三方索赔及全部风险损失，均由承包人全额承担，合同价款不作调整。\n5.做法：满足设计及现行施工技术、质量验收规范要求","个",{"v":56,"d":"56.00"},{"v":400,"d":"400.00"},{"$f":"F12*E12","v":{"v":22400,"d":"22400.00"}}]
["三","人工挖孔桩工程（栈道）"]
[7,"人工挖孔桩土方 桩径 φ800mm","1.地层情况：土方，地层情况承包人应根据图纸和地勘报告综合考虑；\n2.工程量计算方式：按自然地坪/场地平整移交标高至石方标高的长度计算，挖至石方顶部时需通知发包人进行收方；\n3.弃土外运权责：发包人不指定弃土场，由承包人自行踏勘现场、选定合规弃土场、确定运输路线与运距；弃土外运涉及的运输、装卸、弃土场租赁 / 征用、合规手续办理、环保水保、防护等全部费用，均包含在综合单价内，发包人不另行支付。承包人承担弃土全流程合规责任，因违规产生的行政处罚、第三方索赔及全部风险损失，均由承包人全额承担，合同价款不作调整。\n4.设计桩径：800mm；\n5.成孔方式：人工成孔；\n6.综合单价含完成该工作所需的人工、材料、机械费（含辅助机械的进出场费）、措施费（安全文明施工费、季节性施工、临时设施、夜间施工、二次搬运、挖孔中必要的辅助设施，如通风设施、抽排水设备等）、规费、洞口防护措施费等所有相关费用；承包人需配合发包人完成桩基检测（钻芯取样、小应变桩顶打磨、超声波检测、静载等），并完善相关资料。检测费用由发包人承担。\n7.含工完料清、防暑降温等全部内容，并包含因工期计划必须要的窝工、赶工费用。因检测不合格造成的二次返工的所有费用由承包单位自行承担。\n8.发包人不提供水电接入口，需承包人自备发电机保证施工，由承包人综合计入报价。\n9.土方包含黏土层、强风化泥/砂岩、卵石层\n10.做法：满足设计及相关施工规范要求。","m",{"v":25.2,"d":"25.20"},{"v":300,"d":"300.00"},{"$f":"F14*E14","v":{"v":7560,"d":"7560.00"}}]
[8,"人工挖孔桩石方 桩径 φ800mm","1.地层情况：石方综合考虑，嵌岩深度满足设计要求，地层情况承包人应根据图纸和地勘报告综合考虑；\n2.工程量计算方式：现场收方长度计算；挖至石方满足嵌岩深度时需通知发包人进行收方\n3.弃土外运权责：发包人不指定弃土场，由承包人自行踏勘现场、选定合规弃土场、确定运输路线与运距；弃土外运涉及的运输、装卸、弃土场租赁 / 征用、合规手续办理、环保水保、防护等全部费用，均包含在综合单价内，发包人不另行支付。承包人承担弃土全流程合规责任，因违规产生的行政处罚、第三方索赔及全部风险损失，均由承包人全额承担，合同价款不作调整。\n4.设计桩径：800mm；\n5.成孔方式：人工成孔；\n6.综合单价含完成该工作所需的人工、材料（含辅材、周转材料）、机械费（含辅助机械的进出场费、水钻、空压机、鼓风机等）、措施费（安全文明施工费、季节性施工、临时设施、夜间施工、二次搬运、挖孔中必要的辅助设施等）、规费、洞口防护措施费等所有相关费用；承包人需配合发包人完成桩基检测（钻芯取样、小应变桩顶打磨、超声波检测、静载等），并完善相关资料。检测费用由发包人承担。\n7.含工完料清、防暑降温等全部内容，并包含因工期计划必须要的窝工、赶工费用。因检测不合格造成的二次返工的所有费用由承包单位自行承担。\n8.发包人不提供水、电接入口，需承包人自备发电机保证施工，由承包人综合计入报价。\n9.石方包含中风化泥岩/砂岩\n10.做法：满足设计及相关施工规范要求。","m",{"v":58.8,"d":"58.80"},{"v":500,"d":"500.00"},{"$f":"F15*E15","v":{"v":29400,"d":"29400.00"}}]
[9,"人工挖孔灌注桩 护壁混凝土浇筑 C30","1.部位：人工挖孔灌注桩 护壁混凝土浇筑 C30（含锁口混凝土）\n2.混凝土种类及强度等级：C30 \n3.砼运输方式及运距：承包人自行综合考虑\n4.混凝土计算规则：按设计桩顶标高与桩底标高之差，结合设计图纸护壁构件尺寸以体积计算。施工过程中塌孔、缩径、超钻及因地质、工艺等原因产生的混凝土超量、充盈系数增大等风险均由承包人自行承担，超灌、超钻及超出设计充盈部分混凝土费用含在综合单价内，结算时根据收方资料计算扣除。\n5.综合单价含完成该工作所需的人工、材料（含辅材、主材、周转材料）、机械费（含辅助机械的进出场费）、措施费（安全文明施工费、季节性施工、临时设施、夜间施工、二次搬运等）、规费、税金所有相关费用；承包人需配合发包人完成桩基检测（钻芯取样、小应变、超声波、静载等），并完善相关资料。检测费用由发包人承担。\n6.护壁模板单独计算\n7.做法：满足设计及现行施工技术、质量验收规范要求","m3",{"$f":"32.619+3","v":{"v":35.619,"d":"35.62"}},{"v":490,"d":"490.00"},{"$f":"F16*E16","v":17453.31}]
[10,"人工挖孔灌注桩 桩芯混凝土浇筑 C30","1.部位：人工挖孔灌注桩 桩芯混凝土浇筑 C30\n2.混凝土种类及强度等级：C30 \n3.砼运输方式及运距：承包人自行综合考虑\n4.混凝土计算规则：按设计桩顶标高与桩底标高之差，结合设计图纸护桩芯构件尺寸以体积计算。承包人应合理控制浇筑高度，超灌应满足设计及规范要求；施工过程中塌孔、缩径、超钻及因地质、工艺等原因产生的混凝土超量、充盈系数增大等风险均由承包人自行承担，超灌、超钻及超出设计充盈部分混凝土费用含在综合单价内，结算时根据收方资料计算扣除。\n5.综合单价含完成该工作所需的人工、材料（含辅材、主材、周转材料）、机械费（含辅助机械的进出场费）、措施费（安全文明施工费、季节性施工、临时设施、夜间施工、二次搬运等）、规费等所有相关费用；承包人需配合发包人完成桩基检测（钻芯取样、小应变、超声波、静载等），并完善相关资料。检测费用由发包人承担。\n6.护壁模板单独计算\n7.做法：满足设计及现行施工技术、质量验收规范要求","m3",{"v":39.338,"d":"39.34"},{"v":490,"d":"490.00"},{"$f":"F17*E17","v":19275.62}]
[11,"钢筋制作、运输、安装","1.钢筋种类、规格：综合\n2.钢筋连接方式：各种连接方式承包人综合考虑在报价中\n3.包含完成该工作所需的人工费、材料费（含辅材）、机械费、机械进出场费、材料场内外运输、二次或多次转运费均已包含在单价内；钢筋的复检、送检所需的检测费由承包人自行考虑在投标报价中不再另行计取\n4.发包人不提供钢筋加工场，由承包人自行考虑或采取外加工方式，加工区平整、硬化、围挡、加工棚及机具设备均由承包人负责；钢筋场外加工：桩基钢筋埋设、吊装、运输、场内外转运、拼接固定及弧形构件钢筋制作安装增加费用均含在综合单价内，不另行计取\n5.品牌不低于：达钢、威钢、四川德胜、冶控、重庆永航\n6.发包人不提供水电接入口，需承包人自备发电机进行加工及施工，该费用由承包人综合考虑在投标报价中\n7.其余做法：满足设计及现行施工技术、质量验收规范要求","t",{"v":4.727,"d":"4.73"},{"v":5200,"d":"5200.00"},{"v":24580.4,"d":"24580.40"}]
[12,"声波检测钢管","1.材质、规格型号：镀锌钢管SCG 57×1.5mm\n2.包含声测管安装及检测后灌浆，压浆做法满足设计及相关规范要求\n3.做法：满足设计及现行施工技术、质量验收规范要求\n4.计算规则：按现场实际收方计算","m",{"v":175,"d":"175.00"},{"v":20,"d":"20.00"},{"v":3500,"d":"3500.00"},null,null,"声测管、砂浆均由承包人购买"]
[13,"桩径≤φ1000mm截（凿）桩头（不含桩间土开挖）","1.截（凿）桩头截面、高度、强度等级：破桩头高度不小于50cm，未尽事宜满足规范，承包人综合考虑 ，\n2.桩头有无钢筋：有\n3.凿除方式：承包人综合考虑，需采用环切法\n4.包含截桩头，桩头钢筋梳理调直以及建渣外弃，发包人不指定弃土场，由承包人自行踏勘现场、选定合规弃土场、确定运输路线与运距；弃土外运涉及的运输、装卸、弃土场租赁 / 征用、合规手续办理、环保水保、防护等全部费用，均包含在综合单价内，发包人不另行支付。承包人承担弃土全流程合规责任，因违规产生的行政处罚、第三方索赔及全部风险损失，均由承包人全额承担，合同价款不作调整。\n5.做法：满足设计及现行施工技术、质量验收规范要求","个",{"v":7,"d":"7.00"},{"v":300,"d":"300.00"},{"v":2100,"d":"2100.00"}]
["四","措施费"]
[14,"旋挖机及配套机械进出场费","1.本项费用包干使用，包含旋挖机及配套机械（含挖掘机、吊车、振动锤等）的进出场及场内二次转运费用，机械型号由承包人综合考虑。因承包人自身原因（如机械维修、更换等）产生的额外进出场费用，不另行计取、不调整单价。\n2.承包人报价前应充分踏勘现场、熟悉工期要求，综合考虑 5 座桥梁和1座栈道的地理位置及施工方案编制、实施等全部费用，施工过程包干使用不作任何调整","项",{"v":1,"d":"1.00"},{"v":50000,"d":"50000.00"},{"v":50000,"d":"50000.00"}]
[15,"人工挖孔桩护壁模板","1.支模高度：综合考虑\n2.模板类型：木模、组合钢模板、竹胶合板等综合；\n3.对拉螺栓、表面处理、打样、成品保护费及加固模板费用由承包人承担\n4.支架材料：钢管、竹、木支架综合，断面尺寸、材质、工艺等符合设计和施工验收规范要求；\n5.包含承包人根据自身技术能力要求所采用的本工程垂直运输，弧形模板制作安装以及其他全部总价措施费（含锁口混凝土）\n6.本项目承包人应根据施工经验,现场实际情况和企业自身情况综合报价,不论采用何种支模方式综合报价","m2",{"v":100,"d":"100.00"},{"v":65,"d":"65.00"},{"v":6500,"d":"6500.00"}]
[16,"钢护筒（周转使用）","1.部位：桩基础钢护筒（周转使用）\n2.材质及规格：综合考虑，承包人需根据地层情况、桩径、埋深及施工工艺自行确定护筒类型、材质、厚度、直径及长度，满足设计及规范要求。\n3.工作内容：护筒制作、运输、安装、埋设及拔出全过程；吊车、挖机、振动锤等配套机械的进出场（含部分一般机械无法拔出时需使用震动锤的费用）、安拆及使用费用；满足安全文明施工、质量验收规范的所有配套措施。\n4.地层情况：综合考虑项目所在地所有地层条件，承包人应充分踏勘现场，预估施工风险，相关费用含在综合单价内。\n5.计算规则：按实际每根桩临时护筒使用长度减 2.5m 计算；\n6.质量要求：满足设计及现行施工技术、质量验收规范要求。","m",{"v":350,"d":"350.00"},{"v":300,"d":"300.00"},{"v":105000,"d":"105000.00"}]
[17,"钢护筒（一次性摊销）","1.部位：桩基础钢护筒（一次性摊销）\n2.材质及规格：综合考虑，承包人需根据地层情况、桩径、埋深及施工工艺自行确定护筒类型、材质、厚度、直径及长度，满足设计及规范要求。\n3.工作内容：护筒制作、运输、安装、埋设全过程；吊车、挖机、振动锤等配套机械的进出场、安拆及使用费用（含部分一般机械无法拔出时需使用震动锤的费用）；护筒一次性摊销及相关损耗费用；满足安全文明施工、质量验收规范的所有配套措施。\n4.地层情况：综合考虑项目所在地所有地层条件，承包人应充分踏勘现场，预估施工风险，相关费用含在综合单价内。\n5.计算规则：按实际使用长度计算；一次性护筒需发包人同意认可后计算。\n6.质量要求：满足设计及现行施工技术、质量验收规范要求。","t",{"v":10,"d":"10.00"},{"v":4500,"d":"4500.00"},{"v":45000,"d":"45000.00"}]
[null,"合计",{"$nulls":4},{"$f":"SUM(G6:G25)","v":2182572.53},null,{"$f":"SUM(I6:I25)","v":{"v":0,"d":"0.00"}}]
["注：\n1、全费用综合单价，包括人工费、材料费、机械费、管理费、利润、措施费、大型机械进出场费、降排水费、规费、销项增值税和附加税、弃土费，满足环保、城管、政策要求所需的施工措施费及赶工等费用；以上工程量均为暂估量，不因结算工程量与合同工程量不一致而调整综合单价，该项工程为专业承包，发包人不再提供任何材料。\n2.现场安全环保文明施工管理要求：（1）由公司统一发放印有“兴绿园林”字样和LOGO的安全帽和反光背心，班组按实名制领取，使用完后交回项目部，否则按采购费用扣款，其余由班组提供，未详尽部分参照合同附件中安全环保管理协议执行。（2）现场雾炮机由甲方提供，投标单位需安排人员管理使用，人工费、油费、维修费及管理费用综合考虑到投标报价中，不单独计取。  （3）防尘网由甲方提供，投标单位安排人员进行覆盖、回收、现场转移等，人工费综合考虑到投标报价中，不单独计取。（5）现场机械均实行一机一炮，每台挖掘机械均应配备随机雾炮机，工作时需保持雾炮机正常工作，加水、加油、维护等费用综合考虑在报价中。（6）机械配置需满足进度要求（7）发包人不提供水电接驳口及临时冲洗设施，相关费用由承包人自行考虑并计入报价。（8）边坡洞口防护措施由承包人自行实施，费用综合计入报价。\n3.现场及前期工作：承包人报价前自行完成现场踏勘，充分掌握现场实际情况。\n4.场外手续：场外运输相关全部手续由承包人自行办理，费用综合计入报价。\n5.道路防护：保护既有道路所需防护措施的全部费用，由承包人综合计入报价。\n6.场内转运：材料及设备的场内二次及多次转运产生的全部费用，由承包人综合计入报价。\n7.洗车池修建、车辆日常冲洗：发包人不修建洗车池，车辆进出场清洗由承包人负责管理；\n8.专项方案论证相关费用由承包人承担\n9.发包人提供施工临时便道和旋挖机作业平台，施工期间的平台修整由承包人综合考虑并计入投标报价中，不另行计取。\n10.红线外部道路通行费用包含在综合单价内，场内临时道路发包人提供。"]